bitfinex-derivatives/quotes_SOLF0:USTF0_20250808
["timestamp","ask_amount","ask_price","bid_price","bid_amount"]
[1754670418238,15.75505225,176.12,176.11,5.6778]
[1754670418436,5.63068659,176.12,176.11,9.73792163]
[1754670419041,3.04,176.12,176.11,9.73792163]
[1754670419541,3.04,176.12,176.11,4.06012163]
[1754670421143,3.04,176.12,176.11,9.73792163]
[1754670421644,3.04,176.12,176.11,4.06012163]
[1754670423448,3.04,176.12,176.1,235.0]
[1754670423649,3.04,176.12,176.1,4.06012163]
[1754670423851,3.04,176.11,176.1,4.06012163]
[1754670424754,3.04,176.11,176.1,9.73822163]
[1754670425752,3.04,176.13,176.11,0.06]
[1754670425956,3.04,176.13,176.12,145.08012163]
[1754670426155,3.04,176.13,176.12,121.12340878]
[1754670426546,12.71505225,176.16,176.12,121.12340878]
[1754670426757,15.86505225,176.16,176.15,4.06012163]
[1754670427254,3.15,176.16,176.15,4.06012163]
[1754670427450,12.71505225,176.18,176.15,145.08012163]
[1754670427751,12.73304286,176.2,176.17,4.06012163]
[1754670427955,12.73304286,176.2,176.19,4.06012163]
[1754670428257,3.15,176.2,176.19,4.06012163]
[1754670429257,3.15,176.2,176.19,9.73532163]
[1754670429858,3.15,176.2,176.19,4.06012163]
[1754670430256,5.75252455,176.2,176.19,4.06012163]
[1754670430754,5.75178679,176.2,176.19,4.06012163]
[1754670433562,5.75178679,176.2,176.19,0.51221853]
[1754670434159,3.15,176.2,176.19,0.51221853]
[1754670436661,3.15,176.2,176.19,0.08886662]
[1754670437356,8.8249,176.2,176.19,0.08886662]
[1754670437562,3.15,176.24,176.18,235.0]
[1754670437756,3.15,176.18,176.17,4.06012163]
[1754670440367,8.8256,176.18,176.17,4.06012163]
[1754670440671,5.6756,176.18,176.16,0.036227]
[1754670440864,3.15,176.17,176.16,4.09634863]
[1754670443666,3.15,176.17,176.16,0.036227]
[1754670444166,8.8259,176.17,176.16,0.036227]
[1754670445469,5.6771,176.14,176.11,4.06012163]
[1754670445765,3.15,176.13,176.11,145.00012163]
[1754670446462,3.15,176.14,176.11,145.00012163]
[1754670446667,3.15,176.14,176.13,4.06012163]
[1754670446864,3.18771014,176.14,176.13,4.06012163]
[1754670447072,3.18771014,176.14,176.11,147.6978]
[1754670447266,3.18771014,176.14,176.12,4.06012163]
[1754670448067,3.18771014,176.14,176.13,1.08]
[1754670448269,3.18771014,176.14,176.12,4.06012163]
[1754670448471,3.15,176.13,176.12,5.14012163]
[1754670449772,3.15,176.13,176.12,4.06012163]
[1754670458169,3.15,176.13,176.11,140.94]
[1754670458876,3.15,176.13,176.1,239.06012163]
[1754670460781,8.8272,176.13,176.1,239.06012163]
[1754670460977,3.0,176.12,176.1,239.06012163]
[1754670461177,3.0,176.12,176.1,235.0]
[1754670461379,3.0,176.12,176.08,144.98012163]
[1754670461673,3.0,176.13,176.1,5.14012163]
[1754670461974,3.0,176.12,176.1,5.14012163]
[1754670462280,3.0,176.11,176.1,5.14012163]
[1754670463180,3.0,176.11,176.1,4.06012163]
[1754670465376,3.0,176.11,176.08,235.0]
[1754670465805,3.0,176.11,176.03,1.08]
[1754670465806,12.70607063,176.11,176.05,140.92]
[1754670465971,5.6789,176.08,176.04,4.06012163]
[1754670466172,5.65304938,176.07,176.04,4.06012163]
[1754670466381,3.0,176.05,176.04,4.06012163]
[1754670466580,5.65304938,176.05,176.04,4.06012163]
[1754670467472,5.65304938,176.05,176.03,140.92]
[1754670467669,5.65304938,176.04,176.03,140.92]
[1754670467875,3.0,176.03,176.02,4.06012163]
[1754670468085,5.65304938,176.03,176.02,4.06012163]
[1754670469783,5.65304938,176.03,176.01,140.92]
[1754670470081,5.65304938,176.02,176.01,144.98012163]
[1754670471378,3.0,176.01,175.99,4.06012163]
[1754670471575,5.65304938,176.0,175.99,379.98012163]
[1754670471776,5.65304938,176.0,175.99,381.06012163]
[1754670472281,3.0,176.0,175.99,381.06012163]
[1754670472584,5.59198008,176.0,175.99,240.14012163]
[1754670473280,2.59198008,176.0,175.99,245.82182163]
[1754670473674,5.59198008,176.0,175.99,245.82182163]
[1754670474079,2.59198008,176.0,175.99,245.82182163]
[1754670474972,2.59198008,176.0,175.99,386.76182163]
[1754670475172,3.0,176.03,176.02,5.14012163]
[1754670475379,3.0,176.03,176.02,146.08012163]
[1754670475981,3.0,176.03,176.02,145.00012163]
[1754670476183,3.0,176.03,176.02,142.86953519]
[1754670480886,3.0,176.03,176.02,140.94]
[1754670485991,3.0,176.03,175.96,1.08]
[1754670486184,4.06012163,176.03,175.94,1.08]
[1754670486386,4.06012163,176.01,175.93,4.06012163]
[1754670486585,5.6827,175.96,175.93,144.98012163]
[1754670486792,2.99,175.95,175.93,140.92]
[1754670486987,2.99,175.95,175.91,5.14012163]
[1754670487189,2.99,175.95,175.91,146.06012163]
[1754670487586,8.6732,175.95,175.91,144.98012163]
[1754670487789,2.99,175.94,175.91,144.98012163]
[1754670488494,2.99,175.94,175.91,146.06012163]
[1754670488683,2.99,175.94,175.92,4.06012163]
[1754670489994,2.99,175.93,175.92,4.06012163]
[1754670490290,2.99,175.93,175.91,140.92]
[1754670490494,8.674,175.92,175.91,4.06012163]
[1754670491100,2.99,175.92,175.91,4.06012163]
[1754670491297,2.99,175.91,175.9,4.06012163]
[1754670491495,2.99,175.91,175.9,5.14012163]
[1754670492092,2.99,175.91,175.9,4.06012163]
[1754670492299,2.99,175.91,175.89,140.94]
[1754670492796,4.06012163,175.93,175.86,4.06012163]
[1754670492995,2.99,175.92,175.84,145.00012163]
[1754670493393,0.03717986,175.91,175.84,140.94]
[1754670493599,2.99,175.9,175.86,4.06012163]
[1754670493802,2.99,175.9,175.84,4.06012163]
[1754670494499,5.6854,175.88,175.83,1.08]
[1754670494691,2.99,175.9,175.84,4.06012163]
[1754670494891,7.05012163,175.9,175.84,4.06012163]
[1754670495102,2.99,175.84,175.82,145.00012163]
[1754670495402,2.99,175.84,175.81,4.06012163]
[1754670495604,2.99,175.83,175.81,4.06012163]
[1754670496698,5.6877,175.81,175.78,4.06012163]
[1754670497017,2.99,175.83,175.78,4.06012163]
[1754670497201,2.99,175.83,175.78,5.14012163]
[1754670497398,2.99,175.8,175.78,5.14012163]
[1754670497599,0.03720646,175.81,175.79,1.08]
[1754670497901,0.03720646,175.81,175.8,10.82792163]
[1754670498598,0.03720646,175.81,175.8,5.14012163]
[1754670498994,3.02720646,175.81,175.8,5.14012163]
[1754670499194,0.03720646,175.81,175.8,5.14012163]
[1754670500798,3.02720646,175.81,175.8,5.14012163]
[1754670501103,2.99,175.84,175.81,1.08]
[1754670501305,2.99,175.84,175.83,5.14012163]
[1754670501804,2.99,175.84,175.83,1.08]
[1754670502002,2.99,175.84,175.83,5.14012163]
[1754670503712,2.99,175.84,175.83,10.82702163]
[1754670503915,2.99,175.84,175.83,5.14012163]
[1754670504117,2.99,175.84,175.79,235.03592819]
[1754670504118,2.99,175.84,175.81,6.7674]
[1754670504317,2.99,175.84,175.83,4.06012163]
[1754670505218,8.6765,175.84,175.83,4.06012163]
[1754670505517,8.6765,175.84,175.79,236.11592819]
[1754670505518,2.99,175.83,175.81,4.06012163]
[1754670505719,2.99,175.83,175.79,376.03592819]
[1754670505924,2.99,175.83,175.82,4.06012163]
[1754670506323,8.6769,175.83,175.82,4.06012163]
[1754670506711,2.99,175.83,175.82,4.06012163]
[1754670507721,4.06012163,175.92,175.82,5.14012163]
[1754670507917,4.06012163,175.92,175.84,4.06012163]
[1754670508417,2.99,175.93,175.86,4.09638504]
[1754670508817,5.6856,175.87,175.86,4.09638504]
[1754670509023,8.6756,175.87,175.86,4.09638504]
[1754670509315,8.6756,175.87,175.82,5.6869]
[1754670509316,5.6869,175.83,175.79,146.688]
[1754670509517,2.99,175.82,175.79,376.0]
[1754670509711,2.99,175.87,175.81,4.06012163]
[1754670510524,4.06012163,175.89,175.81,4.06012163]
[1754670510828,2.99,175.82,175.79,376.0]
[1754670511024,2.99,175.82,175.81,4.06012163]
[1754670511421,2.99,175.81,175.79,377.12]
[1754670511724,2.99,175.81,175.8,4.06012163]
[1754670512824,2.99,175.81,175.8,5.18012163]
[1754670513419,2.99,175.81,175.8,4.06012163]
[1754670514516,0.03831637,175.83,175.8,5.18012163]
[1754670514823,3.02831637,175.83,175.81,1.12]
[1754670515430,3.02831637,175.83,175.82,4.06012163]
[1754670517127,0.03831637,175.83,175.82,10.86732163]
[1754670517321,5.6856,175.87,175.82,9.74732163]
[1754670517627,3.18,175.85,175.83,1.12]
[1754670518225,3.18,175.85,175.82,5.6872]
[1754670518427,4.06012163,175.94,175.83,146.6667]
[1754670518734,3.18,175.87,175.86,1.12]
[1754670518922,8.865,175.89,175.86,4.06012163]
[1754670519122,8.865,175.89,175.88,4.06012163]
[1754670519123,5.685,175.89,175.88,4.06012163]
[1754670519427,5.6846,175.9,175.88,4.06012163]
[1754670519623,4.06012163,175.97,175.88,4.06012163]
[1754670519928,3.18,175.96,175.88,4.06012163]
[1754670520127,3.18,175.96,175.91,0.04182885]
[1754670520520,5.6839,175.92,175.91,0.04182885]
[1754670520828,8.8639,175.92,175.91,0.04182885]
[1754670521615,3.18,175.92,175.91,0.04182885]
[1754670522325,8.8639,175.92,175.91,0.04182885]
[1754670522532,3.18,175.92,175.91,0.04182885]
[1754670524331,8.8639,175.92,175.91,0.04182885]
[1754670531023,3.18,175.97,175.91,1.16182885]
[1754670531229,3.18,175.97,175.95,4.06012163]
[1754670531431,5.6826,175.96,175.95,0.50673961]
[1754670531726,8.8626,175.96,175.95,0.50673961]
[1754670532629,5.683,175.95,175.94,0.03935031]
[1754670532829,8.863,175.95,175.94,0.03935031]
[1754670537431,8.863,175.95,175.94,0.00611218]
[1754670539833,5.6847,175.9,175.86,235.0]
[1754670540034,3.18,175.89,175.86,4.06012163]
[1754670540431,3.18,175.88,175.87,1.13]
[1754670540637,3.18,175.91,175.89,1.13]
[1754670540839,3.18,175.91,175.9,5.19012163]
[1754670541338,3.18,175.91,175.9,4.06012163]
[1754670542938,8.8643,175.91,175.9,4.06012163]
[1754670543538,5.6846,175.9,175.88,1.13]
[1754670543738,5.6846,175.9,175.89,4.06012163]
[1754670544141,5.6844,175.91,175.89,4.06012163]
[1754670544343,3.18,175.9,175.89,4.06012163]
[1754670547146,0.04308928,175.92,175.89,4.06012163]
[1754670547340,0.04308928,175.92,175.91,5.18012163]
[1754670547741,12.70607063,175.96,175.91,4.06012163]
[1754670547937,3.23,175.93,175.91,1.12]
[1754670548144,3.2702942,175.93,175.91,1.12]
[1754670548641,0.0402942,175.93,175.91,1.12]
[1754670548844,3.23,175.92,175.87,1.12]
[1754670549047,3.23,175.91,175.88,1.12]
[1754670549348,0.0402942,175.93,175.91,4.06012163]
[1754670549751,0.0402942,175.93,175.91,5.18012163]
[1754670549752,3.2702942,175.93,175.91,5.18012163]
[1754670549940,3.23,175.92,175.91,5.18012163]
[1754670550443,3.23,175.92,175.91,4.06012163]
[1754670550644,3.23,175.92,175.91,5.18012163]
[1754670551849,3.23,175.92,175.91,4.06012163]
[1754670552957,0.0402942,175.93,175.91,4.06012163]
[1754670553250,3.23,175.92,175.91,5.18012163]
[1754670553446,0.0402942,175.93,175.91,5.18012163]
[1754670553652,0.0402942,175.93,175.92,1.12]
[1754670554145,3.2702942,175.93,175.92,1.12]
[1754670554855,3.2702942,175.93,175.91,244.74412163]
[1754670555148,3.23,175.92,175.91,245.86412163]
[1754670555350,3.23,175.92,175.91,240.18012163]
[1754670555850,3.23,175.92,175.91,239.06012163]
[1754670556854,3.2702942,175.93,175.92,1.12]
[1754670557048,3.2702942,175.93,175.91,5.18012163]
[1754670557249,0.0402942,175.93,175.92,1.12]
[1754670557450,12.70607063,175.97,175.93,1.12]
[1754670557650,12.70607063,175.97,175.96,4.06012163]
[1754670557651,3.23,175.97,175.96,4.06012163]
[1754670558050,3.23,175.96,175.93,4.06012163]
[1754670558357,3.23,175.95,175.91,4.06012163]
[1754670558546,5.6835,175.94,175.91,4.06012163]
[1754670558748,3.23,175.93,175.91,4.06012163]
[1754670558947,3.23,175.93,175.91,4.10261737]
[1754670560053,3.23,175.92,175.91,4.10261737]
[1754670560245,3.23,175.92,175.91,5.22261737]
[1754670563458,3.23,175.92,175.91,10.90691737]
[1754670563758,3.23,175.95,175.93,1.12]
[1754670564057,15.93607063,175.96,175.94,3.04841336]
[1754670564652,3.23,175.95,175.94,3.04841336]
[1754670565060,12.70607063,175.96,175.94,8.73171336]
[1754670565359,3.23,175.96,175.94,7.61171336]
[1754670565762,3.23,175.96,175.95,5.683]
[1754670566052,3.23,175.96,175.94,3.04841336]
[1754670566254,3.23,175.96,175.94,8.73151336]
[1754670566448,3.23,175.96,175.94,1.92841336]
[1754670566652,12.70607063,175.99,175.96,1.12]
[1754670566860,15.93607063,176.0,175.98,5.18012163]
[1754670567356,15.93607063,176.0,175.99,1.12]
[1754670567357,3.23,176.0,175.99,1.12]
[1754670567560,3.23,176.0,175.98,4.06012163]
[1754670567756,3.23,175.99,175.98,5.18012163]
[1754670568864,3.23,175.99,175.98,4.06012163]
[1754670569258,3.23,175.99,175.98,10.86212163]
[1754670569560,12.70607063,176.03,175.98,4.06012163]
[1754670569763,12.70607063,176.03,176.02,4.06012163]
[1754670570164,12.70607063,176.04,176.02,4.06012163]
[1754670570357,18.38627063,176.04,176.02,7.32012163]
[1754670570764,18.38627063,176.04,176.02,4.06012163]
[1754670571565,3.23,176.03,176.02,4.06012163]
[1754670571863,8.9104,176.03,176.02,4.06012163]
[1754670572766,8.9107,176.02,176.01,0.04078712]
[1754670583571,3.06,176.04,176.02,3.05]
[1754670583775,3.06,176.04,176.03,3.05]
[1754670584275,3.06,176.05,176.04,3.05]
[1754670584469,3.06,176.05,176.04,7.11012163]
[1754670586267,3.06,176.05,176.04,4.06012163]
[1754670586675,8.7397,176.05,176.04,4.06012163]
[1754670588380,8.7404,176.03,176.02,4.06012163]
[1754670588576,3.06,176.03,176.01,0.04078712]
[1754670588876,8.741,176.01,176.0,4.06012163]
[1754670589179,8.741,176.01,176.0,0.04321946]
[1754670591678,8.741,176.01,176.0,3.09321946]
[1754670591679,3.06,176.01,176.0,3.09321946]
[1754670591878,3.06,176.01,176.0,7.15334109]
[1754670592079,8.7408,176.02,176.01,3.05]
[1754670592279,3.06,176.02,176.01,3.05]
[1754670595380,8.7407,176.02,176.01,3.05]
[1754670595585,3.06,176.01,176.0,0.04321946]
[1754670595980,5.681,176.01,176.0,0.04321946]
[1754670596184,8.741,176.01,176.0,0.04321946]
[1754670596887,8.741,176.01,176.0,3.09321946]
[1754670598392,8.741,176.01,176.0,0.04321946]
[1754670598590,3.06,176.01,176.0,0.04321946]
[1754670600288,3.06,176.01,176.0,3.09321946]
[1754670600496,3.06,176.03,176.01,3.05]
[1754670600794,3.06,176.03,176.0,7.15334109]
[1754670600995,3.06,176.02,176.0,4.10334109]
[1754670601188,3.06,176.02,176.01,3.05]
[1754670601389,3.06,176.03,176.02,3.05]
[1754670601593,3.06,176.03,176.02,4.06012163]
[1754670602096,3.06,176.03,176.02,0.50874313]
[1754670602288,5.6808,176.02,176.0,4.10334109]
[1754670602590,3.06,176.01,176.0,4.10334109]
[1754670604496,5.681,176.01,176.0,0.04321946]
[1754670604795,3.06,176.01,176.0,0.04321946]
[1754670605593,8.741,176.01,176.0,0.04321946]
[1754670605796,3.06,176.0,175.97,1.97226523]
[1754670606001,2.99,175.98,175.97,1.97226523]
[1754670606199,11.23513829,175.98,175.97,1.97226523]
[1754670606800,2.99,175.96,175.95,144.68012163]
[1754670607100,2.99,175.96,175.95,4.06012163]
[1754670607304,2.99,175.96,175.93,4.06012163]
[1754670607621,2.99,175.94,175.93,4.06012163]
[1754670609204,2.99,175.95,175.93,5.82012163]
[1754670609393,2.99,175.95,175.93,4.06012163]
[1754670609705,18.45292295,175.97,175.93,4.06012163]
[1754670609905,18.45292295,175.97,175.93,5.82012163]
[1754670610104,2.99,175.94,175.93,5.82012163]
[1754670610301,2.99,175.94,175.93,4.06012163]
[1754670610905,2.99,175.94,175.92,140.62]
[1754670611109,2.99,175.93,175.91,4.06012163]
[1754670611805,2.99,175.91,175.88,1.76]
[1754670612001,2.99,175.92,175.9,1.76]
[1754670612203,2.99,175.92,175.91,5.82012163]
[1754670612502,3.02603428,175.93,175.92,1.76]
[1754670612705,0.03603428,175.93,175.92,1.76]
[1754670612907,2.99,175.93,175.92,5.82012163]
[1754670613211,2.99,175.93,175.92,4.06012163]
[1754670614712,2.99,175.93,175.9,144.68012163]
[1754670615210,2.99,175.93,175.88,5.6852]
[1754670615411,12.5354706,175.89,175.88,4.06012163]
[1754670616204,2.99,175.89,175.88,4.06012163]
[1754670616413,8.6749,175.89,175.87,140.62]
[1754670616613,12.53260448,175.88,175.87,140.62]
[1754670616802,12.2188393,175.88,175.87,140.95849134]
[1754670617010,9.58563713,175.9,175.87,141.12634997]
[1754670617203,9.58563713,175.9,175.89,4.06012163]
[1754670617410,9.58563713,175.9,175.89,5.82012163]
[1754670618010,0.04303265,175.9,175.89,5.82012163]
[1754670618418,0.04303265,175.9,175.89,11.50502163]
[1754670619110,3.03303265,175.9,175.89,5.82012163]
[1754670619313,3.03303265,175.9,175.89,4.06012163]
[1754670619617,3.03303265,175.9,175.89,5.82012163]
[1754670619820,12.57563713,175.9,175.89,5.82012163]
[1754670620019,9.58563713,175.9,175.89,5.82012163]
[1754670620216,0.04303265,175.9,175.89,11.50502163]
[1754670620707,3.03303265,175.9,175.89,5.82012163]
[1754670620908,3.03303265,175.9,175.89,4.06012163]
[1754670621109,3.03303265,175.9,175.87,141.12634997]
[1754670621110,2.99,175.89,175.87,141.12634997]
[1754670621315,9.5303751,175.89,175.87,141.12634997]
[1754670621514,2.99,175.88,175.87,141.12634997]
[1754670622216,2.99,175.88,175.87,4.06012163]
[1754670622618,2.99,175.88,175.84,144.68012163]
[1754670622819,2.99,175.86,175.84,144.68012163]
[1754670623121,2.99,175.85,175.84,144.68012163]
[1754670623319,9.52935091,175.86,175.83,4.06012163]
[1754670623516,9.52935091,175.86,175.77,239.06012163]
[1754670623517,2.99,175.84,175.81,4.06012163]
[1754670623725,9.52935091,175.84,175.81,4.06012163]
[1754670623915,2.99,175.83,175.81,4.06012163]
[1754670624315,9.52935091,175.85,175.82,1.76]
[1754670624516,2.99,175.84,175.82,1.76]
[1754670624714,9.52935091,175.85,175.83,5.82012163]
[1754670624915,0.04153794,175.86,175.85,1.76]
[1754670625125,0.04153794,175.86,175.85,5.82012163]
[1754670625817,12.51935091,175.89,175.85,5.82012163]
[1754670626020,12.51935091,175.89,175.88,4.06012163]
[1754670626422,12.73461565,175.93,175.88,11.50532163]
[1754670626423,9.52935091,175.9,175.88,11.50532163]
[1754670626621,9.52935091,175.91,175.88,4.06012163]
[1754670626826,12.51935091,175.9,175.89,4.06012163]
[1754670627730,12.51935091,175.9,175.89,1.92777199]
[1754670627731,18.18489372,175.9,175.89,1.92777199]
[1754670628029,12.50029372,175.9,175.89,1.92777199]
[1754670628222,12.50029372,175.9,175.88,0.04268586]
[1754670628428,12.50029372,175.9,175.88,4.10280749]
[1754670628429,2.99,175.89,175.88,4.10280749]
[1754670628821,12.50029372,175.89,175.88,4.10280749]
[1754670629425,2.99,175.89,175.88,4.10280749]
[1754670629631,12.50029372,175.91,175.88,5.86280749]
[1754670629835,2.99,175.9,175.88,1.80268586]
[1754670630129,9.51029372,175.91,175.89,1.76]
[1754670630529,2.99,175.9,175.89,7.4449]
[1754670630739,12.73461565,175.99,175.9,1.76]
[1754670630924,394.67461565,176.02,175.9,1.76]
[1754670631130,394.67461565,176.02,175.98,4.06012163]
[1754670632034,5.6817,175.99,175.98,0.03903352]
[1754670632836,5.6824,175.97,175.95,4.06012163]
[1754670633034,2.99,175.96,175.95,4.06012163]
[1754670633635,2.99,175.95,175.93,8.9036]
[1754670633936,2.99,175.99,175.95,7.28012163]
[1754670634328,0.03615691,175.96,175.95,4.06012163]
[1754670634533,3.02615691,175.96,175.95,4.06012163]
[1754670634731,2.99,175.96,175.95,4.06012163]
[1754670635833,0.03906637,175.97,175.95,4.06012163]
[1754670636036,0.03906637,175.97,175.96,3.22]
[1754670636245,2.99,175.99,175.96,3.22]
[1754670636540,3.0,176.03,175.99,3.1]
[1754670636841,3.0,176.03,176.02,7.16012163]
[1754670637044,3.0,176.05,176.02,4.06012163]
[1754670637241,3.0,176.05,175.95,144.66012163]
[1754670637242,5.6788,176.08,176.04,7.16012163]
[1754670637436,3.0,176.09,176.07,4.06012163]
[1754670637635,12.73461565,176.1,176.07,4.06012163]
[1754670637636,3.0,176.08,176.07,7.16012163]
[1754670637835,3.0,176.09,176.07,7.16012163]
[1754670638038,3.0,176.08,176.07,7.16012163]
[1754670638339,3.0,176.08,176.07,4.06012163]
[1754670638529,8.679,176.08,176.06,0.03841679]
[1754670638736,3.0,176.1,176.07,4.06012163]
[1754670639138,5.6788,176.08,176.07,4.06012163]
[1754670639338,3.0,176.08,176.06,4.09853842]
[1754670639840,8.6791,176.07,176.06,4.09853842]
[1754670640539,8.6797,176.05,175.95,4.06012163]
[1754670640740,3.0,176.05,176.02,4.06012163]
[1754670641139,3.0,176.03,176.02,4.06012163]
[1754670641439,3.0,176.03,176.0,3.1]
[1754670641640,3.0,176.07,176.01,4.06012163]
[1754670642134,5.6802,176.04,176.01,4.06012163]
[1754670642335,3.0,176.04,176.03,7.16012163]
[1754670642530,3.03876025,176.06,176.04,3.1]
[1754670642838,3.0,176.05,176.04,3.1]
[1754670643342,3.03738206,176.07,176.05,3.1]
[1754670643639,8.71658206,176.07,176.06,3.1]
[1754670643944,8.6792,176.07,176.06,7.16012163]
[1754670644342,3.0,176.05,176.04,3.1]
[1754670644538,3.0,176.05,176.04,4.06012163]
[1754670645048,8.6797,176.05,176.04,4.06012163]
[1754670646341,0.04332165,176.06,176.05,3.1]
[1754670648449,3.04332165,176.06,176.05,3.1]
[1754670649444,0.04332165,176.06,176.05,3.1]
[1754670650549,3.04332165,176.06,176.05,3.1]
[1754670650949,0.04332165,176.06,176.04,7.16012163]
[1754670651151,3.0,176.05,176.04,7.16012163]
[1754670651653,3.0,176.05,176.04,4.06012163]
[1754670652553,3.0,176.05,176.04,7.16012163]
[1754670653958,3.04332165,176.06,176.04,4.06012163]
[1754670654151,3.04332165,176.06,176.05,3.1]
[1754670656448,3.04332165,176.06,176.04,4.06012163]
[1754670656656,3.0,176.05,176.04,7.16012163]
[1754670657152,3.0,176.05,176.04,4.06012163]
[1754670658357,3.0,176.05,176.02,4.06012163]
[1754670658857,3.0,176.03,176.02,4.06012163]
[1754670660758,8.6804,176.03,176.02,4.06012163]
[1754670660960,5.6804,176.03,176.02,4.06012163]
[1754670661260,8.6804,176.03,176.02,4.06012163]
[1754670662156,3.0,176.01,175.97,3.1]
[1754670662356,3.0,176.01,175.96,4.06012163]
[1754670662659,3.0,176.01,175.96,7.16012163]
[1754670662850,0.03615174,176.0,175.98,7.16012163]
[1754670663057,0.03615174,176.0,175.99,3.1]
[1754670663762,3.03615174,176.0,175.99,7.16012163]
[1754670664074,3.03615174,176.0,175.99,4.06012163]
[1754670664455,3.03615174,176.0,175.99,7.16012163]
[1754670665750,0.03615174,176.0,175.99,7.16012163]
[1754670666954,3.13615174,176.0,175.99,7.16012163]
[1754670667259,8.81755174,176.0,175.99,4.06012163]
[1754670668266,3.13615174,176.0,175.99,4.06012163]
[1754670668752,0.03615174,176.0,175.97,3.22]
[1754670668953,0.03615174,176.0,175.96,4.06012163]
[1754670669159,0.03615174,176.0,175.94,4.06012163]
[1754670669460,3.1,175.95,175.94,4.06012163]
[1754670669660,3.1,175.95,175.94,7.28012163]
[1754670669861,8.7836,175.93,175.92,4.06012163]
[1754670670060,3.1,175.91,175.9,7.28012163]
[1754670670255,4.06012163,175.98,175.9,4.06012163]
[1754670670456,3.1,175.92,175.91,3.22]
[1754670671162,3.1,175.92,175.9,4.06012163]
[1754670671364,3.1,175.91,175.9,7.28012163]
[1754670671963,3.1,175.91,175.88,4.06012163]
[1754670672760,3.1,175.88,175.87,3.22]
[1754670672963,3.1,175.88,175.87,7.28012163]
[1754670673364,3.1,175.88,175.85,4.06012163]
[1754670673860,3.1,175.87,175.85,7.28012163]
[1754670674764,3.1,175.86,175.82,3.22]
[1754670674962,3.1,175.86,175.83,4.06012163]
[1754670675154,3.1,175.86,175.81,217.00058057]
[1754670675563,3.1,175.86,175.81,220.22058057]
[1754670675767,2.62127062,175.85,175.81,220.22058057]
[1754670676059,2.62127062,175.84,175.81,7.28012163]
[1754670676368,0.03615208,175.85,175.74,0.99005676]
[1754670676369,3.1,175.82,175.75,3.22]
[1754670676566,3.1,175.8,175.79,4.06012163]
[1754670676765,5.72127062,175.8,175.79,4.06012163]
[1754670677464,5.72127062,175.8,175.78,3.22]
[1754670677664,5.72127062,175.79,175.78,4.06012163]
[1754670677866,5.72127062,175.79,175.76,4.06012163]
[1754670678067,3.1,175.77,175.76,3.22]
[1754670678265,2.62127062,175.77,175.76,4.06012163]
[1754670678762,2.62127062,175.77,175.75,4.06012163]
[1754670678966,5.72127062,175.76,175.75,4.06012163]
[1754670679159,2.62127062,175.76,175.71,0.99029624]
[1754670679364,3.1,175.74,175.73,4.06012163]
[1754670679569,5.72127062,175.74,175.73,4.06012163]
[1754670681161,2.62127062,175.74,175.71,3.22]
[1754670681361,3.1,175.72,175.71,4.06012163]
[1754670681661,3.1,175.71,175.69,4.06012163]
[1754670681857,5.72127062,175.7,175.69,4.06012163]
[1754670682067,3.1,175.69,175.68,4.06012163]
[1754670682266,5.72127062,175.69,175.67,3.22]
[1754670682465,2.62127062,175.68,175.67,3.22]
[1754670682666,2.62127062,175.68,175.67,7.28012163]
[1754670683277,5.72127062,175.68,175.64,6.68361913]
[1754670683587,5.72127062,175.67,175.66,7.28012163]
[1754670683762,5.72127062,175.67,175.66,4.06012163]
[1754670684272,2.62127062,175.67,175.66,7.28012163]
[1754670684868,0.03724545,175.68,175.66,12.97252163]
[1754670685165,0.03724545,175.68,175.67,3.22]
[1754670687675,0.03724545,175.68,175.67,8.912]
[1754670688372,0.03724545,175.68,175.66,4.06012163]
[1754670688373,3.1,175.72,175.69,3.22]
[1754670688570,3.1,175.74,175.73,3.22]